{"text_format":"1","workbook":"xlsx","n_sheets":7,"sheets":["Change log","1-General Agency Info","2-Building Energy Use","3-Fleet Energy Use","4- GHG Emissions Summary","5 - Reference Data","6 - Ecology"],"not_rendered":{"charts":0,"images":0,"macros":1,"external_links":1,"defined_names":1,"comments":4,"pivot_tables":0},"unopened":[],"bounds":{"document_bytes":16777216,"sheet_cells":100000,"rows_first":2000,"rows_last":500,"rows_between":2000,"halvings":0,"cell_chars":16384,"cell_head_chars":4096},"cells_cut":0,"cells_raw":0,"read":"whole","date_system":"1900"}

{"sheet":"Change log","index":0,"n_rows":18,"n_cols":1,"rows_kept":18,"cut":false,"hidden":false,"merged":[]}
["Changes to calculator from 2020 to 2021"]
["1-General Agency Info"]
["Update report due date from July 1, 2020 to July 1, 2021"]
["Update Ecology contact information"]
["Add Department of Commerce into agency drop-down box"]
[]
["2 - Building Energy Use"]
["Modify electricity category names and directions to clarify renewable electricity"]
[]
["3 - Fleet Energy Use"]
["*Update default biofuel percentages; add/modify biofuel footnotes"]
[]
["4- GHG Emissions Summary"]
["*Summary table (cells A1:C5): exclude biogenic portion of biofuel emission, update title and category names to reflect change, add footnote, include CH4 and N2O from fleets"]
[]
["5-Reference Data"]
["Add Department of Commerce to Reporter table"]
["*Denotes potential quantitative impact"]

{"sheet":"1-General Agency Info","index":1,"n_rows":18,"n_cols":2,"rows_kept":18,"cut":false,"hidden":false,"merged":[[1,0,1,1]]}
["Washington State Agency Greenhouse Gas (GHG) Calculator "]
["Use this calculator to determine your agency's annual GHG emissions from building energy use (purchased electricity and stationary combustion) and fleet energy use (vehicle fleets and mobile equipment).\n  \nUse spreadsheets 1-3 to enter information into the yellow highlighted cells.  Use spreadsheet 4 to view your agency's emissions.  Hover your mouse over red triangles in the upper right-hand corner of a cell for more information about the data requested.  \n\nOnce you have entered your agency's information into the calculator, complete the following steps to submit your report to Ecology:\n1.) Log into your Secure Access Washington Account (SAW). If you do not have an account, you will need to create one and wait for an approval email from Ecology.\n2.) Go to “My services” and select “State Agency and Academia GHG Reporting Tool” – Reporters commonly make the mistake of reporting their emissions under the wrong program, so please make sure you choose the correct tool.\n3.) Search for your agency by name and upload your file.\n\nYour report is due to Ecology by July 1, 2021.  \n\nIf you have questions or need assistance with your report, please contact Emily Bruns (emily.bruns@ecy.wa.gov)."]
[]
["Agency Information"]
["Agency"]
["Calendar year"]
["Project lead name"]
["Project lead phone"]
["Project lead email"]
["Total # of employees (full and part-time)"]
["Total # of students, patients, offenders, etc. agency serves"]
["Agency owned space (sq. ft.)"]
["Space leased in a DES owned building (sq. ft.)"," "]
["Space leased from another state agency (sq. ft.)"," "]
["Space leased in a privately owned building (sq. ft.)"," "]
["Total space (sq. ft.)",{"$f":"SUM(B12:B15)","v":0}]
[]
["Comments"," "]

{"sheet":"2-Building Energy Use","index":2,"n_rows":18,"n_cols":8,"rows_kept":18,"cut":false,"hidden":false,"merged":[[17,1,17,4],[1,0,1,2]]}
["Building Energy Use"]
["Use this spreadsheet to enter information about stationary sources and purchased electricity and steam into yellow highlighted cells.  Include all electricity purchased, including electricity purchased from 'green' contracts.  There is a section at the bottom to provide any comments.                                                                                                                                                                                                                                                                                                                                                                                                                                                                                                                                                                                                                                "]
[]
["Emission Sources",null,null," "," "]
["Did your agency have stationary combustion?",null,null," "]
["Did your agency purchase electricity or steam?"]
[{"$f":"IF(B6=\"Yes\", \"Was any of your electricity purchased from a green contract?\", \"\")","v":""}]
[]
[{"$f":"IF($B$5=\"Yes\", \"Stationary Combustion (Direct Emissions)\", \"\")","v":""},null,null,{"$f":"IF($B$6=\"Yes\", \"Purchased Electricity and Steam (Indirect Emissions)\", \"\")","v":""}]
[{"$f":"IF($B$5=\"Yes\", \"Fuel type\", \"\")","v":""},{"$f":"IF($B$5=\"Yes\", \"Fuel quantity^\", \"\")","v":""}," ",{"$f":"IF($B$6=\"Yes\", \"Type\", \"\")","v":""},{"$f":"IF($B$6=\"Yes\", \"Quantity^\", \"\")","v":""},{"$f":"IF($B$7=\"Yes\", \"CO2 emission factor (lbs CO2/MWh)*\", \"\")","v":""},{"$f":"IF($B$7=\"Yes\", \"CH4 emission factor (lbs CH4/MWh)*\", \"\")","v":""},{"$f":"IF($B$7=\"Yes\", \"N2O emission factor (lbs N2O/MWh)*\", \"\")","v":""}]
[{"$f":"IF($B$5=\"Yes\", \"Natural gas (therms)\", \"\")","v":""},null,null,{"$f":"IF($B$6=\"Yes\",  \"Purchased electricity (non-green contract, kWh)\", \"\")","v":""}]
[{"$f":"IF($B$5=\"Yes\", \"Diesel (gallons)\", \"\")","v":""},null,null,{"$f":"IF($B$6=\"Yes\", \"Purchased steam (klbs)\", \"\")","v":""}]
[{"$f":"IF($B$5=\"Yes\", \"Propane (gallons)\", \"\")","v":""},null,null,{"$f":"IF($B$7=\"Yes\", \"Purchased electrcity from green contract (kWh)\", \"\")","v":""}]
[{"$f":"IF($B$5=\"Yes\", \"Fuel oil (gallons)\", \"\")","v":""},null,null,null,{"$f":"IF($B$6=\"Yes\", \"^Include angency owned space and privately leased space\", \"\")","v":""},{"$f":"IF($B$7=\"Yes\", \"*Provided on the contract, typically very low or zero\", \"\")","v":""}]
[{"$f":"IF($B$5=\"Yes\", \"Gasoline (gallons)\", \"\")","v":""}]
[" ",{"$f":"IF($B$5=\"Yes\", \"^Include angency owned space and privately leased space\", \"\")","v":""}]
[]
["Comments"]

{"sheet":"3-Fleet Energy Use","index":3,"n_rows":34,"n_cols":3,"rows_kept":34,"cut":false,"hidden":false,"merged":[[1,0,3,1],[33,1,33,2]]}
["Fleet Energy Use"," "]
["Use this spreadsheet to enter information about fleet(s) and mobile equipment owned by the agency or leased from the state motor pool into yellow highlighted cells.  There is a section at the bottom to provide any comments."]
[]
[]
[]
["Emission Sources"," "]
["Did your agency have motor vehicles (light duty, heavy duty, on-road, or off-road)?"]
["Did your agency have boats (excluding ferries)?"]
["Did your agency have ferries?"]
["Did your agency have aircraft?"]
[]
[{"$f":"IF($B$7=\"Yes\", \"Motor Vehicles\", \"\")","v":""}]
[{"$f":"IF($B$7=\"Yes\", \"Fuel type\", \"\")","v":""},{"$f":"IF($B$7=\"Yes\", \"Fuel quantity (gallons)\", \"\")","v":""},{"$f":"IF($B$7=\"Yes\", \"Biofuel (%)*\", \"\")","v":""}]
[{"$f":"IF($B$7=\"Yes\", \"Gasoline\", \"\")","v":""},null,{"$f":"IF($B$7=\"Yes\", \"10%\", \"\")","v":""}]
[{"$f":"IF($B$7=\"Yes\", \"Diesel: Retail purchases\", \"\")","v":""},null,{"$f":"IF($B$7=\"Yes\", \"0%\", \"\")","v":""}]
[{"$f":"IF($B$7=\"Yes\", \"Diesel: WSDOT fueling stations\", \"\")","v":""},null,{"$f":"IF($B$7=\"Yes\", \"0%\", \"\")","v":""}]
[{"$f":"IF($B$7=\"Yes\", \"Diesel: Bulk purchases\", \"\")","v":""},null,{"$f":"IF($B$7=\"Yes\", \"0%\", \"\")","v":""}]
[{"$f":"IF($B$7=\"Yes\", \"Propane\", \"\")","v":""},null,{"$f":"IF($B$7=\"Yes\", \"0%\", \"\")","v":""}]
[null,null,{"$f":"IF($B$7=\"Yes\", \"*Default percentage shown.  Modify if you know the actual % biofuel for your agency.  Biodiesel % at WSDOT fueling stations = 13.7%.\", \"\")","v":""}]
[{"$f":"IF($B$8=\"Yes\", \"Boats (excluding ferries)\", \"\")","v":""}]
[{"$f":"IF($B$8=\"Yes\", \"Fuel type\", \"\")","v":""},{"$f":"IF($B$8=\"Yes\", \"Fuel quantity (gallons)\", \"\")","v":""},{"$f":"IF($B$8=\"Yes\", \"Biofuel (%)*\", \"\")","v":""}]
[{"$f":"IF($B$8=\"Yes\", \"Gasoline\", \"\")","v":""},null,{"$f":"IF($B$8=\"Yes\", \"10%\", \"\")","v":""}]
[{"$f":"IF($B$8=\"Yes\", \"Diesel\", \"\")","v":""},null,{"$f":"IF($B$8=\"Yes\", \"0%\", \"\")","v":""}]
[null,null,{"$f":"IF($B$8=\"Yes\", \"*Default percentage shown.  Modify if you know the actual % biofuel for your agency.\", \"\")","v":""}]
[{"$f":"IF($B$9=\"Yes\", \"Ferries\", \"\")","v":""}]
[{"$f":"IF($B$9=\"Yes\", \"Fuel type\", \"\")","v":""},{"$f":"IF($B$9=\"Yes\", \"Fuel quantity (gallons)\", \"\")","v":""},{"$f":"IF($B$9=\"Yes\", \"Biofuel (%)*\", \"\")","v":""}]
[{"$f":"IF($B$9=\"Yes\", \"Diesel\", \"\")","v":""},null,{"$f":"IF($B$9=\"Yes\", \"0%\", \"\")","v":""}]
[null,null,{"$f":"IF($B$9=\"Yes\", \"*Default percentage shown.  Modify if you know the actual % biofuel for your agency.\", \"\")","v":""}]
[{"$f":"IF($B$10=\"Yes\", \"Aircraft\", \"\")","v":""}]
[{"$f":"IF($B$10=\"Yes\", \"Fuel type\", \"\")","v":""},{"$f":"IF($B$10=\"Yes\", \"Fuel quantity (gallons)\", \"\")","v":""},{"$f":"IF($B$10=\"Yes\", \"Biofuel (%)*\", \"\")","v":""}]
[{"$f":"IF($B$10=\"Yes\", \"Aviation gasoline\", \"\")","v":""},null,{"$f":"IF($B$10=\"Yes\", \"10%\", \"\")","v":""}]
[{"$f":"IF($B$10=\"Yes\", \"Jet fuel\", \"\")","v":""},null,{"$f":"IF($B$10=\"Yes\", \"0%\", \"\")","v":""}]
[null," ",{"$f":"IF($B$10=\"Yes\", \"*Default percentage shown.  Modify if you know the actual % biofuel for your agency.\", \"\")","v":""}]
["Comments"]

{"sheet":"4- GHG Emissions Summary","index":4,"n_rows":40,"n_cols":8,"rows_kept":40,"cut":false,"hidden":false,"merged":[[39,1,39,6]]}
["Fossil GHG Emissions Summary*"," "]
["Total building energy use",{"$f":"E19","v":0},"MT CO2e"]
["Total fossil fleet energy use",{"$f":"E37-G37","v":0},"MT CO2e"]
["Total annual fossil GHG emissions",{"$f":"B2+B3","v":0},"MT CO2e"]
["*Excludes biogenic portion of biofuel combustion",null,null," "]
[]
["Building Energy Use"," "," "," "," "]
["Source","CO2 emissions (MT CO2)","CH4 emissions (MT CH4)","N2O emissions (MT N2O)","Total emissions (MT CO2e)"]
["Stationary combustion"]
["Natural gas",{"$f":"IFERROR(IF('2-Building Energy Use'!$B$5=\"Yes\", ('2-Building Energy Use'!B11*'5 - Reference Data'!D13), 0),0)","v":0},{"$f":"IFERROR(IF('2-Building Energy Use'!$B$5=\"Yes\", ('2-Building Energy Use'!B11*'5 - Reference Data'!F13), 0),0)","v":0},{"$f":"IFERROR(IF('2-Building Energy Use'!$B$5=\"Yes\", ('2-Building Energy Use'!B11*'5 - Reference Data'!H13), 0),0)","v":0},{"$f":"B10+(C10*'5 - Reference Data'!$B$45)+(D10*'5 - Reference Data'!$B$46)","v":0}]
["Diesel",{"$f":"IFERROR(IF('2-Building Energy Use'!$B$5=\"Yes\", ('2-Building Energy Use'!B12*'5 - Reference Data'!D15), 0),0)","v":0},{"$f":"IFERROR(IF('2-Building Energy Use'!$B$5=\"Yes\", ('2-Building Energy Use'!B12*'5 - Reference Data'!F15), 0),0)","v":0},{"$f":"IFERROR(IF('2-Building Energy Use'!$B$5=\"Yes\", ('2-Building Energy Use'!B12*'5 - Reference Data'!H15), 0),0)","v":0},{"$f":"B11+(C11*'5 - Reference Data'!$B$45)+(D11*'5 - Reference Data'!$B$46)","v":0},null," "," "]
["Propane",{"$f":"IFERROR(IF('2-Building Energy Use'!$B$5=\"Yes\", ('2-Building Energy Use'!B13*'5 - Reference Data'!D16), 0),0)","v":0},{"$f":"IFERROR(IF('2-Building Energy Use'!$B$5=\"Yes\", ('2-Building Energy Use'!B13*'5 - Reference Data'!F16), 0),0)","v":0},{"$f":"IFERROR(IF('2-Building Energy Use'!$B$5=\"Yes\", ('2-Building Energy Use'!B13*'5 - Reference Data'!H16), 0),0)","v":0},{"$f":"B12+(C12*'5 - Reference Data'!$B$45)+(D12*'5 - Reference Data'!$B$46)","v":0},null," "]
["Fuel oil",{"$f":"IFERROR(IF('2-Building Energy Use'!$B$5=\"Yes\", ('2-Building Energy Use'!B14*'5 - Reference Data'!D17), 0),0)","v":0},{"$f":"IFERROR(IF('2-Building Energy Use'!$B$5=\"Yes\", ('2-Building Energy Use'!B14*'5 - Reference Data'!F17), 0),0)","v":0},{"$f":"IFERROR(IF('2-Building Energy Use'!$B$5=\"Yes\", ('2-Building Energy Use'!B14*'5 - Reference Data'!H17), 0),0)","v":0},{"$f":"B13+(C13*'5 - Reference Data'!$B$45)+(D13*'5 - Reference Data'!$B$46)","v":0}]
["Gasoline",{"$f":"IFERROR(IF('2-Building Energy Use'!$B$5=\"Yes\", ('2-Building Energy Use'!B15*'5 - Reference Data'!D18), 0),0)","v":0},{"$f":"IFERROR(IF('2-Building Energy Use'!$B$5=\"Yes\", ('2-Building Energy Use'!B15*'5 - Reference Data'!F18), 0),0)","v":0},{"$f":"IFERROR(IF('2-Building Energy Use'!$B$5=\"Yes\", ('2-Building Energy Use'!B15*'5 - Reference Data'!H18), 0),0)","v":0},{"$f":"B14+(C14*'5 - Reference Data'!$B$45)+(D14*'5 - Reference Data'!$B$46)","v":0},null," "]
["Electricity",null,null,null,null,null," "]
["All purchased electricity ",{"$f":"IFERROR(IF('2-Building Energy Use'!$B$6=\"Yes\", ('2-Building Energy Use'!$E$11*'5 - Reference Data'!C23)+B18, 0),0)","v":0},{"$f":"IFERROR(IF('2-Building Energy Use'!$B$6=\"Yes\", ('2-Building Energy Use'!$E$11*'5 - Reference Data'!E23)+C18, 0),0)","v":0},{"$f":"IFERROR(IF('2-Building Energy Use'!$B$6=\"Yes\", ('2-Building Energy Use'!$E$11*'5 - Reference Data'!G23)+D18, 0),0)","v":0},{"$f":"B16+(C16*'5 - Reference Data'!$B$45)+(D16*'5 - Reference Data'!$B$46)","v":0},null," "]
["Purchased steam",{"$f":"IFERROR(IF('2-Building Energy Use'!$B$6=\"Yes\", ('2-Building Energy Use'!E12*'5 - Reference Data'!C26), 0),0)","v":0},{"$f":"IFERROR(IF('2-Building Energy Use'!$B$6=\"Yes\", ('2-Building Energy Use'!E12*'5 - Reference Data'!E26), 0),0)","v":0},{"$f":"IFERROR(IF('2-Building Energy Use'!$B$6=\"Yes\", (SUM('2-Building Energy Use'!E12:E12)*'5 - Reference Data'!G26), 0),0)","v":0},{"$f":"B17+(C17*'5 - Reference Data'!$B$45)+(D17*'5 - Reference Data'!$B$46)","v":0}]
["Purchased electricity - renewable",{"$f":"IFERROR(IF('2-Building Energy Use'!$B$7=\"Yes\", ('2-Building Energy Use'!E13*'5 - Reference Data'!B24), 0),0)","v":0},{"$f":"IFERROR(IF('2-Building Energy Use'!$B$7=\"Yes\", ('2-Building Energy Use'!E13*'5 - Reference Data'!E24), 0),0)","v":0},{"$f":"IFERROR(IF('2-Building Energy Use'!$B$7=\"Yes\", ('2-Building Energy Use'!E13*'5 - Reference Data'!G24), 0),0)","v":0},{"$f":"B18+(C18*'5 - Reference Data'!$B$45)+(D18*'5 - Reference Data'!$B$46)","v":0},null," "]
["Total building energy use",{"$f":"SUM(B16:B17,B10:B14)","v":0},{"$f":"SUM(C16:C17,C10:C14)","v":0},{"$f":"SUM(D16:D17,D10:D14)","v":0},{"$f":"SUM(E16:E17,E10:E14)","v":0}]
[]
["Fleet Energy Use"," "," "," "," "]
["Source","CO2 emissions (MT CO2)","CH4 emissions (MT CH4)","N2O emissions (MT N2O)","Total emissions (MT CO2e)","Fossil CO2 emissions (MT CO2)","Biogenic CO2 emissions (MT CO2)"]
["Motor vehicles"]
["Gasoline",{"$f":"F24+G24","v":0},{"$f":"IFERROR(IF('3-Fleet Energy Use'!$B$7=\"Yes\", ((('3-Fleet Energy Use'!B14)*(1-'3-Fleet Energy Use'!C14))*'5 - Reference Data'!F34), 0),0)+IFERROR(IF('3-Fleet Energy Use'!$B$7=\"Yes\", ((('3-Fleet Energy Use'!B14)*('3-Fleet Energy Use'!C14))*'5 - Reference Data'!F35), 0),0)","v":0},{"$f":"IFERROR(IF('3-Fleet Energy Use'!$B$7=\"Yes\", ((('3-Fleet Energy Use'!B14)*(1-'3-Fleet Energy Use'!C14))*'5 - Reference Data'!H34), 0),0)+IFERROR(IF('3-Fleet Energy Use'!$B$7=\"Yes\", ((('3-Fleet Energy Use'!B14)*('3-Fleet Energy Use'!C14))*'5 - Reference Data'!H35), 0),0)","v":0},{"$f":"B24+(C24*'5 - Reference Data'!$B$45)+(D24*'5 - Reference Data'!$B$46)","v":0},{"$f":"IFERROR(IF('3-Fleet Energy Use'!$B$7=\"Yes\", ((('3-Fleet Energy Use'!B14)*(1-'3-Fleet Energy Use'!C14))*'5 - Reference Data'!D34), 0),0)","v":0},{"$f":"IFERROR(IF('3-Fleet Energy Use'!$B$7=\"Yes\", ((('3-Fleet Energy Use'!B14)*('3-Fleet Energy Use'!C14))*'5 - Reference Data'!D35), 0),0)","v":0}," "]
["Diesel: Retail purchases",{"$f":"F25+G25","v":0},{"$f":"IFERROR(IF('3-Fleet Energy Use'!$B$7=\"Yes\", ((('3-Fleet Energy Use'!B15)*(1-'3-Fleet Energy Use'!C15))*'5 - Reference Data'!F36), 0),0)+IFERROR(IF('3-Fleet Energy Use'!$B$7=\"Yes\", ((('3-Fleet Energy Use'!B15)*('3-Fleet Energy Use'!C15))*'5 - Reference Data'!F37), 0),0)","v":0},{"$f":"IFERROR(IF('3-Fleet Energy Use'!$B$7=\"Yes\", ((('3-Fleet Energy Use'!B15)*(1-'3-Fleet Energy Use'!C15))*'5 - Reference Data'!H36), 0),0)+IFERROR(IF('3-Fleet Energy Use'!$B$7=\"Yes\", ((('3-Fleet Energy Use'!B15)*('3-Fleet Energy Use'!C15))*'5 - Reference Data'!H37), 0),0)","v":0},{"$f":"B25+(C25*'5 - Reference Data'!$B$45)+(D25*'5 - Reference Data'!$B$46)","v":0},{"$f":"IFERROR(IF('3-Fleet Energy Use'!$B$7=\"Yes\", ((('3-Fleet Energy Use'!B15)*(1-'3-Fleet Energy Use'!C15))*'5 - Reference Data'!D36), 0),0)","v":0},{"$f":"IFERROR(IF('3-Fleet Energy Use'!$B$7=\"Yes\", ((('3-Fleet Energy Use'!B15)*('3-Fleet Energy Use'!C15))*'5 - Reference Data'!D37), 0),0)","v":0}]
["Diesel: WSDOT fueling stations",{"$f":"F26+G26","v":0},{"$f":"IFERROR(IF('3-Fleet Energy Use'!$B$7=\"Yes\", ((('3-Fleet Energy Use'!B16)*(1-'3-Fleet Energy Use'!C16))*'5 - Reference Data'!F36), 0),0)+IFERROR(IF('3-Fleet Energy Use'!$B$7=\"Yes\", ((('3-Fleet Energy Use'!B16)*('3-Fleet Energy Use'!C16))*'5 - Reference Data'!F37), 0),0)","v":0},{"$f":"IFERROR(IF('3-Fleet Energy Use'!$B$7=\"Yes\", ((('3-Fleet Energy Use'!B16)*(1-'3-Fleet Energy Use'!C16))*'5 - Reference Data'!H36), 0),0)+IFERROR(IF('3-Fleet Energy Use'!$B$7=\"Yes\", ((('3-Fleet Energy Use'!B16)*('3-Fleet Energy Use'!C16))*'5 - Reference Data'!H37), 0),0)","v":0},{"$f":"B26+(C26*'5 - Reference Data'!$B$45)+(D26*'5 - Reference Data'!$B$46)","v":0},{"$f":"IFERROR(IF('3-Fleet Energy Use'!$B$7=\"Yes\", ((('3-Fleet Energy Use'!B16)*(1-'3-Fleet Energy Use'!C16))*'5 - Reference Data'!D36), 0),0)","v":0},{"$f":"IFERROR(IF('3-Fleet Energy Use'!$B$7=\"Yes\", ((('3-Fleet Energy Use'!B16)*('3-Fleet Energy Use'!C16))*'5 - Reference Data'!D37), 0),0)","v":0}]
["Diesel: Bulk purchases",{"$f":"F27+G27","v":0},{"$f":"IFERROR(IF('3-Fleet Energy Use'!$B$7=\"Yes\", ((('3-Fleet Energy Use'!B17)*(1-'3-Fleet Energy Use'!C17))*'5 - Reference Data'!F36), 0),0)+IFERROR(IF('3-Fleet Energy Use'!$B$7=\"Yes\", ((('3-Fleet Energy Use'!B17)*('3-Fleet Energy Use'!C17))*'5 - Reference Data'!F37), 0),0)","v":0},{"$f":"IFERROR(IF('3-Fleet Energy Use'!$B$7=\"Yes\", ((('3-Fleet Energy Use'!B17)*(1-'3-Fleet Energy Use'!C17))*'5 - Reference Data'!H36), 0),0)+IFERROR(IF('3-Fleet Energy Use'!$B$7=\"Yes\", ((('3-Fleet Energy Use'!B17)*('3-Fleet Energy Use'!C17))*'5 - Reference Data'!H37), 0),0)","v":0},{"$f":"B27+(C27*'5 - Reference Data'!$B$45)+(D27*'5 - Reference Data'!$B$46)","v":0},{"$f":"IFERROR(IF('3-Fleet Energy Use'!$B$7=\"Yes\", ((('3-Fleet Energy Use'!B17)*(1-'3-Fleet Energy Use'!C17))*'5 - Reference Data'!D36), 0),0)","v":0},{"$f":"IFERROR(IF('3-Fleet Energy Use'!$B$7=\"Yes\", ((('3-Fleet Energy Use'!B17)*('3-Fleet Energy Use'!C17))*'5 - Reference Data'!D37), 0),0)","v":0}]
["Propane",{"$f":"F28+G28","v":0},{"$f":"IFERROR(IF('3-Fleet Energy Use'!$B$7=\"Yes\", ((('3-Fleet Energy Use'!B18)*(1-'3-Fleet Energy Use'!C18))*'5 - Reference Data'!F38), 0),0)+IFERROR(IF('3-Fleet Energy Use'!$B$7=\"Yes\", ((('3-Fleet Energy Use'!B18)*('3-Fleet Energy Use'!C18))*'5 - Reference Data'!F38), 0),0)","v":0},{"$f":"IFERROR(IF('3-Fleet Energy Use'!$B$7=\"Yes\", ((('3-Fleet Energy Use'!B18)*(1-'3-Fleet Energy Use'!C18))*'5 - Reference Data'!H38), 0),0)+IFERROR(IF('3-Fleet Energy Use'!$B$7=\"Yes\", ((('3-Fleet Energy Use'!B18)*('3-Fleet Energy Use'!C18))*'5 - Reference Data'!H38), 0),0)","v":0},{"$f":"B28+(C28*'5 - Reference Data'!$B$45)+(D28*'5 - Reference Data'!$B$46)","v":0},{"$f":"IFERROR(IF('3-Fleet Energy Use'!$B$7=\"Yes\", ((('3-Fleet Energy Use'!B18)*(1-'3-Fleet Energy Use'!C18))*'5 - Reference Data'!D38), 0),0)","v":0},{"$f":"IFERROR(IF('3-Fleet Energy Use'!$B$7=\"Yes\", ((('3-Fleet Energy Use'!B18)*('3-Fleet Energy Use'!C18))*'5 - Reference Data'!D38), 0),0)","v":0}]
["Boats (excluding ferries)"]
["Gasoline",{"$f":"F30+G30","v":0},{"$f":"IFERROR(IF('3-Fleet Energy Use'!$B$7=\"Yes\", ((('3-Fleet Energy Use'!B22)*(1-'3-Fleet Energy Use'!C22))*'5 - Reference Data'!F34), 0),0)+IFERROR(IF('3-Fleet Energy Use'!$B$7=\"Yes\", ((('3-Fleet Energy Use'!B22)*('3-Fleet Energy Use'!C22))*'5 - Reference Data'!F35), 0),0)","v":0},{"$f":"IFERROR(IF('3-Fleet Energy Use'!$B$7=\"Yes\", ((('3-Fleet Energy Use'!B22)*(1-'3-Fleet Energy Use'!C22))*'5 - Reference Data'!H34), 0),0)+IFERROR(IF('3-Fleet Energy Use'!$B$7=\"Yes\", ((('3-Fleet Energy Use'!B22)*('3-Fleet Energy Use'!C22))*'5 - Reference Data'!H35), 0),0)","v":0},{"$f":"B30+(C30*'5 - Reference Data'!$B$45)+(D30*'5 - Reference Data'!$B$46)","v":0},{"$f":"IFERROR(IF('3-Fleet Energy Use'!$B$7=\"Yes\", ((('3-Fleet Energy Use'!B22)*(1-'3-Fleet Energy Use'!C22))*'5 - Reference Data'!D34), 0),0)","v":0},{"$f":"IFERROR(IF('3-Fleet Energy Use'!$B$7=\"Yes\", ((('3-Fleet Energy Use'!B22)*('3-Fleet Energy Use'!C22))*'5 - Reference Data'!D35), 0),0)","v":0}]
["Diesel",{"$f":"F31+G31","v":0},{"$f":"IFERROR(IF('3-Fleet Energy Use'!$B$7=\"Yes\", ((('3-Fleet Energy Use'!B23)*(1-'3-Fleet Energy Use'!C23))*'5 - Reference Data'!F36), 0),0)+IFERROR(IF('3-Fleet Energy Use'!$B$7=\"Yes\", ((('3-Fleet Energy Use'!B23)*('3-Fleet Energy Use'!C23))*'5 - Reference Data'!F37), 0),0)","v":0},{"$f":"IFERROR(IF('3-Fleet Energy Use'!$B$7=\"Yes\", ((('3-Fleet Energy Use'!B23)*(1-'3-Fleet Energy Use'!C23))*'5 - Reference Data'!H36), 0),0)+IFERROR(IF('3-Fleet Energy Use'!$B$7=\"Yes\", ((('3-Fleet Energy Use'!B23)*('3-Fleet Energy Use'!C23))*'5 - Reference Data'!H37), 0),0)","v":0},{"$f":"B31+(C31*'5 - Reference Data'!$B$45)+(D31*'5 - Reference Data'!$B$46)","v":0},{"$f":"IFERROR(IF('3-Fleet Energy Use'!$B$7=\"Yes\", ((('3-Fleet Energy Use'!B23)*(1-'3-Fleet Energy Use'!C23))*'5 - Reference Data'!D36), 0),0)","v":0},{"$f":"IFERROR(IF('3-Fleet Energy Use'!$B$7=\"Yes\", ((('3-Fleet Energy Use'!B23)*('3-Fleet Energy Use'!C23))*'5 - Reference Data'!D37), 0),0)","v":0}]
["Ferries"]
["Diesel",{"$f":"F33+G33","v":0},{"$f":"IFERROR(IF('3-Fleet Energy Use'!$B$7=\"Yes\", ((('3-Fleet Energy Use'!B27)*(1-'3-Fleet Energy Use'!C27))*'5 - Reference Data'!F36), 0),0)+IFERROR(IF('3-Fleet Energy Use'!$B$7=\"Yes\", ((('3-Fleet Energy Use'!B27)*('3-Fleet Energy Use'!C27))*'5 - Reference Data'!F37), 0),0)","v":0},{"$f":"IFERROR(IF('3-Fleet Energy Use'!$B$7=\"Yes\", ((('3-Fleet Energy Use'!B27)*(1-'3-Fleet Energy Use'!C27))*'5 - Reference Data'!H36), 0),0)+IFERROR(IF('3-Fleet Energy Use'!$B$7=\"Yes\", ((('3-Fleet Energy Use'!B27)*('3-Fleet Energy Use'!C27))*'5 - Reference Data'!H37), 0),0)","v":0},{"$f":"B33+(C33*'5 - Reference Data'!$B$45)+(D33*'5 - Reference Data'!$B$46)","v":0},{"$f":"IFERROR(IF('3-Fleet Energy Use'!$B$7=\"Yes\", ((('3-Fleet Energy Use'!B27)*(1-'3-Fleet Energy Use'!C27))*'5 - Reference Data'!D36), 0),0)","v":0},{"$f":"IFERROR(IF('3-Fleet Energy Use'!$B$7=\"Yes\", ((('3-Fleet Energy Use'!B27)*('3-Fleet Energy Use'!C27))*'5 - Reference Data'!D37), 0),0)","v":0}]
["Aircraft"]
["Aviation gasoline",{"$f":"F35+G35","v":0},{"$f":"IFERROR(IF('3-Fleet Energy Use'!$B$7=\"Yes\", ((('3-Fleet Energy Use'!B31)*(1-'3-Fleet Energy Use'!C31))*'5 - Reference Data'!F39), 0),0)+IFERROR(IF('3-Fleet Energy Use'!$B$7=\"Yes\", ((('3-Fleet Energy Use'!B31)*('3-Fleet Energy Use'!C31))*'5 - Reference Data'!F35), 0),0)","v":0},{"$f":"IFERROR(IF('3-Fleet Energy Use'!$B$7=\"Yes\", ((('3-Fleet Energy Use'!B31)*(1-'3-Fleet Energy Use'!C31))*'5 - Reference Data'!H39), 0),0)+IFERROR(IF('3-Fleet Energy Use'!$B$7=\"Yes\", ((('3-Fleet Energy Use'!B31)*('3-Fleet Energy Use'!C31))*'5 - Reference Data'!H35), 0),0)","v":0},{"$f":"B35+(C35*'5 - Reference Data'!$B$45)+(D35*'5 - Reference Data'!$B$46)","v":0},{"$f":"IFERROR(IF('3-Fleet Energy Use'!$B$7=\"Yes\", ((('3-Fleet Energy Use'!B31)*(1-'3-Fleet Energy Use'!C31))*'5 - Reference Data'!D39), 0),0)","v":0},{"$f":"IFERROR(IF('3-Fleet Energy Use'!$B$7=\"Yes\", ((('3-Fleet Energy Use'!B31)*('3-Fleet Energy Use'!C31))*'5 - Reference Data'!D35), 0),0)","v":0}]
["Jet fuel",{"$f":"F36+G36","v":0},{"$f":"IFERROR(IF('3-Fleet Energy Use'!$B$7=\"Yes\", ((('3-Fleet Energy Use'!B32)*(1-'3-Fleet Energy Use'!C32))*'5 - Reference Data'!F40), 0),0)+IFERROR(IF('3-Fleet Energy Use'!$B$7=\"Yes\", ((('3-Fleet Energy Use'!B32)*('3-Fleet Energy Use'!C32))*'5 - Reference Data'!F40), 0),0)","v":0},{"$f":"IFERROR(IF('3-Fleet Energy Use'!$B$7=\"Yes\", ((('3-Fleet Energy Use'!B32)*(1-'3-Fleet Energy Use'!C32))*'5 - Reference Data'!H40), 0),0)+IFERROR(IF('3-Fleet Energy Use'!$B$7=\"Yes\", ((('3-Fleet Energy Use'!B32)*('3-Fleet Energy Use'!C32))*'5 - Reference Data'!H40), 0),0)","v":0},{"$f":"B36+(C36*'5 - Reference Data'!$B$45)+(D36*'5 - Reference Data'!$B$46)","v":0},{"$f":"IFERROR(IF('3-Fleet Energy Use'!$B$7=\"Yes\", ((('3-Fleet Energy Use'!B32)*(1-'3-Fleet Energy Use'!C32))*'5 - Reference Data'!D40), 0),0)","v":0},{"$f":"IFERROR(IF('3-Fleet Energy Use'!$B$7=\"Yes\", ((('3-Fleet Energy Use'!B32)*('3-Fleet Energy Use'!C32))*'5 - Reference Data'!D40), 0),0)","v":0}]
["Total fleet energy use",{"$f":"SUM(B35:B36,B33,B30:B31,B24:B28)","v":0},0,0,0,{"$f":"SUM(F35:F36,F33,F30:F31,F24:F28)","v":0},{"$f":"SUM(G35:G36,G33,G30:G31,G24:G28)","v":0}]
[]
[]
["Comments"]

{"sheet":"5 - Reference Data","index":5,"n_rows":83,"n_cols":8,"rows_kept":83,"cut":false,"hidden":false,"merged":[[42,0,42,1]]}
["Reference Data"," "]
[]
["Conversion Factors"," ",null," "]
[1000,"kg/MT"]
[0.1,"mmBtu/therm"," "," "]
[2.2046199999999998,"lb/kg"]
[42,"gal/bbl liquid fuel"]
[1000,"kWh/MWh"]
[1.194,"MMBtu/klb steam"]
[]
["Stationary Sources"," "," "," "," ",null," "," "]
["Fuel","High heat value (mmBtu/scf)","CO2 emission factor (kg CO2/mmBtu)","CO2 emission factor (MT CO2/therm)","CH4 emission factor (kg CH4/mmBtu)","CH4 emission factor (MT CH4/therm)","N2O emissions factor (kg N2O/mmBtu)","N2O emission factor (MT N2O/therm)"]
["Natural gas",1.026E-3,53.06,{"$f":"C13*A5/A4","v":5.3060000000000008E-3},{"$f":"1*10^-3","v":1E-3},{"$f":"E13*A5/A4","v":1.0000000000000001E-7},{"$f":"1*10^-4","v":1E-4},{"$f":"G13*A5/A4","v":1E-8}]
["Fuel","High heat value (mmBtu/gallon)","CO2 emission factor (kg CO2/mmBtu)","CO2 emission factor (MT CO2/gallon)","CH4 emission factor (kg CH4/mmBtu)","CH4 emission factor (MT CH4/gallon)","N2O emissions factor (kg N2O/mmBtu)","N2O emission factor (MT N2O/gallon)"]
["Diesel (distillate #2)",0.13800000000000001,73.959999999999994,{"$f":"B15*C15/$A$4","v":1.0206479999999999E-2},{"$f":"3*10^-3","v":3.0000000000000001E-3},{"$f":"B15*E15/$A$4","v":4.1400000000000003E-7},{"$f":"6*10^-4","v":6.0000000000000006E-4},{"$f":"B15*G15/$A$4","v":8.2800000000000027E-8}]
["Propane",9.0999999999999998E-2,62.87,{"$f":"B16*C16/$A$4","v":5.7211700000000002E-3},{"$f":"3*10^-3","v":3.0000000000000001E-3},{"$f":"B16*E16/$A$4","v":2.7300000000000002E-7},{"$f":"6*10^-4","v":6.0000000000000006E-4},{"$f":"B16*G16/$A$4","v":5.4600000000000006E-8}]
["Fuel oil",0.13800000000000001,73.959999999999994,{"$f":"B17*C17/$A$4","v":1.0206479999999999E-2},{"$f":"3*10^-3","v":3.0000000000000001E-3},{"$f":"B17*E17/$A$4","v":4.1400000000000003E-7},{"$f":"6*10^-4","v":6.0000000000000006E-4},{"$f":"B17*G17/$A$4","v":8.2800000000000027E-8}]
["Gasoline",0.125,70.22,{"$f":"B18*C18/$A$4","v":8.7775000000000006E-3},{"$f":"3*10^-3","v":3.0000000000000001E-3},{"$f":"B18*E18/$A$4","v":3.7500000000000001E-7},{"$f":"6*10^-4","v":6.0000000000000006E-4},{"$f":"B18*G18/$A$4","v":7.500000000000001E-8}]
["Source: EPA 40 C.F.R Part 98 as adopted in WAC 173-441"," "," "," "," "," "]
[null," "," ",null," "]
["Electricity"," "," "," "," "," "," "]
["Fuel","CO2 emission factor (kg CO2/kWh)","CO2 emission factor (MT CO2/kWh)","CH4 emission factor (kg CH4/MWh)","CH4 emission factor (MT CH4/kWh)","N2O emissions factor (kg N2O/MWh)","N2O emission factor (MT N2O/kWh)"]
["Purchased electricity",0.17599999999999999,{"$f":"B23/$A$4","v":1.76E-4},3.4000000000000002E-2,{"$f":"D23/($A$6*$A$4*$A$8)","v":1.5422158920811752E-8},4.0000000000000001E-3,{"$f":"F23/($A$6*$A$4*$A$8)","v":1.8143716377425588E-9}]
["Purchased electricity - renewable",{"$f":"IFERROR(IF('2-Building Energy Use'!F13=\"\", 0, '2-Building Energy Use'!F13/($A$4*$A$6)),0)","v":0},{"$f":"IF('2-Building Energy Use'!F13=\"\", 0, B24/$A$4)","v":0},{"$f":"IFERROR(IF('2-Building Energy Use'!G13=\"\", 0, '2-Building Energy Use'!G13/($A$4*$A$6)),0)","v":0},{"$f":"IF('2-Building Energy Use'!G13=\"\", 0, D24/$A$4)","v":0},{"$f":"IFERROR(IF('2-Building Energy Use'!H13=\"\", 0, '2-Building Energy Use'!H13/($A$4*$A$6)),0)","v":0},{"$f":"IF('2-Building Energy Use'!H13=\"\", 0, F24/$A$4)","v":0}]
["Fuel","CO2 emission factor (kg CO2/mmBtu)","CO2 emission factor (MT CO2/klb)","CH4 emission factor (kg CH4/mmBtu)","CH4 emission factor (MT CH4/klb)","N2O emissions factor (kg N2O/mmBtu)","N2O emission factor (MT N2O/klb)"]
["Purchased steam",66.33,{"$f":"B26*$A$9/$A$4","v":7.9198019999999994E-2},{"$f":"1.25/$A$4","v":1.25E-3},{"$f":"D26*$A$9/$A$4","v":1.4924999999999999E-6},{"$f":"0.125/1000","v":1.25E-4},{"$f":"F26*$A$9/$A$4","v":1.4924999999999999E-7}]
["Source: CO2 purchased electricity EF - WA Fuel Mix Disclosure (2018) (https://www.commerce.wa.gov/growing-the-economy/energy/fuel-mix-disclosure/)",null,null," "," "," "]
["Source: CH4 and N2O purchased electricity EFs - eGrid fuel mix profile (https://www.epa.gov/energy/emissions-generation-resource-integrated-database-egrid)",null,null,null," "]
["Source: CO2, CH4 and N2O purchased electricity - renewable EFs - Zero unless reporter enters values from green contract on 2-Building Energy Use spreadsheet"]
["Source: CO2, CH4, and N2O purchased steam EFs - EPA Emission Factors for Greenhouse Gas Inventories (https://www.epa.gov/sites/production/files/2018-03/documents/emission-factors_mar_2018_0.pdf)"]
[]
["Fleets"," "," "," "," ",null," "]
["Fuel","Default high heat value (mmBtu/gallon)","CO2 emission factor (MT CO2/bbl)","CO2 emission factor (MT CO2/gallon)","CH4 emission factor (kg CH4/mmBtu)","CH4 emission factor (MT CH4/gallon)","N2O emissions factor (kg N2O/mmBtu)","N2O emission factor (MT N2O/gallon)"]
["Gasoline",0.125,0.37630000000000002,{"$f":"C34/$A$7","v":8.9595238095238096E-3},{"$f":"3*10^-3","v":3.0000000000000001E-3},{"$f":"B34*E34/$A$4","v":3.7500000000000001E-7},{"$f":"6*10^-4","v":6.0000000000000006E-4},{"$f":"G34*B34/$A$4","v":7.500000000000001E-8}]
["Ethanol (E100)",8.4000000000000005E-2,0.2422,{"$f":"C35/$A$7","v":5.7666666666666665E-3},{"$f":"1.1*10^-3","v":1.1000000000000001E-3},9.2400000000000007E-8,{"$f":"1.1*10^-4","v":1.1000000000000002E-4},9.240000000000002E-9]
["Diesel  ",0.13800000000000001,0.42959999999999998,1.0228571428571429E-2,{"$f":"3*10^-3","v":3.0000000000000001E-3},4.1400000000000003E-7,{"$f":"6*10^-4","v":6.0000000000000006E-4},8.2800000000000027E-8]
["Biodiesel (B100)",0.128,0.3957,9.4214285714285719E-3,{"$f":"1.1*10^-3","v":1.1000000000000001E-3},1.4080000000000002E-7,{"$f":"1.1*10^-4","v":1.1000000000000002E-4},1.4080000000000003E-8]
["Propane",9.0999999999999998E-2,0.24099999999999999,5.7380952380952383E-3,{"$f":"3*10^-3","v":3.0000000000000001E-3},2.7300000000000002E-7,{"$f":"6*10^-4","v":6.0000000000000006E-4},5.4600000000000006E-8]
["Aviation gasoline",0.125,0.34899999999999998,8.3095238095238083E-3,{"$f":"3*10^-3","v":3.0000000000000001E-3},3.7500000000000001E-7,{"$f":"6*10^-4","v":6.0000000000000006E-4},7.500000000000001E-8]
["Jet fuel",0.13500000000000001,0.40949999999999998,9.75E-3,{"$f":"3*10^-3","v":3.0000000000000001E-3},4.0500000000000004E-7,{"$f":"6*10^-4","v":6.0000000000000006E-4},8.1000000000000024E-8]
["Source: EPA 40 C.F.R Part 98"," "]
[null,null,null,null," "," "]
["Global Warming Potentials (100 yr)",null,null,null,null," "]
["CO2",1]
["CH4",25]
["N2O",298]
["Source: WAC 173-441"]
[]
["Reporters","Code"]
["Central Washington University (CWU)",3750]
["Department of Agriculture (AGR)",4950]
["Department of Commerce (COM)",1030]
["Department of Corrections (DOC)",3100]
["Department of Ecology (ECY)",4610]
["Department of Enterprise Services (DES)",1790]
["Department of Fish and Wildlife (DFW)",4770]
["Department of Health (DOH)",3030]
["Department of Labor and Industries (L&I)",2350]
["Department of Natural Resources (DNR)",4900]
["Department of Social and Health Services (DSHS)",3000]
["Department of Transportation (DOT)",4050]
["Department of Veterans' Affairs (DVA)",3050]
["Eastern Washington University (EWU)",3700]
["The Evergreen State College (TESC)",3760]
["Highline College (HC)",6520]
["Liquor and Cannabis Board (LCB)",1950]
["Seattle Community College - District 6 (SCCD-6)",6700]
["Spokane Community College - District 17 (SCCD-17)",6760]
["State Parks and Recreation (PARKS)",4650]
["University of Washington (UW)",3600]
["Washington State Patrol (WSP)",2250]
["Washington State University (WSU)",3650]
["Western Washington University (WWU)",3800]
[]
[]
[]
[" "]
[" "]
[]
[" "]
[]
[]
[" "]

{"sheet":"6 - Ecology","index":6,"n_rows":125,"n_cols":24,"rows_kept":125,"cut":false,"hidden":true,"merged":[]}
["SA_Code","SA_Name","SA_Year","SA_Category","SA_Fuel","SA_Fuel_Details","SA_Fuel_Quantity","SA_Fuel_Quantity_Unit","SA_Biofuel_Perc","SA_GHG_Rep_Quantity","SA_GHG_CO2e_Rep_Quantity","SA_GHG_Quantity_Unit","SA_GHG_Name",null,null,"SA_Code","SA_Name","SA_Year","SA_Contact_Name","SA_Contact_Phone","SA_Contact_Email","SA_Category","SA_Category_Quantity","SA_Category_Quantity_Unit"]
[null,null,null,"Stationary Combustion","Natural Gas (Weighted U.S. Average)",null,null,null,null,null,null,"MT","CO2"," ",null,{"$f":"$A$2","v":0},{"$f":"$B$2","v":0},{"$f":"$C$2","v":0}]
[{"$f":"$A$2","v":0},{"$f":"$B$2","v":0},{"$f":"$C$2","v":0},"Stationary Combustion","Natural Gas (Weighted U.S. Average)",null,null,null,null,null,null,"MT","CH4"," ",null,{"$f":"$A$2","v":0},{"$f":"$B$2","v":0},{"$f":"$C$2","v":0}," ",null,null,"Employees",null," "]
[0,0,0,"Stationary Combustion","Natural Gas (Weighted U.S. Average)",null,null,null,null,null,null,"MT","N2O",null,null,0,0,0,null,null,null,"People served",null," "]
[0,0,0,"Stationary Combustion","Distillate Fuel Oil No. 2",null,null,null,null,null,null,"MT","CO2",null,null,0,0,0,null,null,null,"Agency owned space",null,"ft2"]
[0,0,0,"Stationary Combustion","Distillate Fuel Oil No. 2",null,null,null,null,null,null,"MT","CH4",null,null,0,0,0,null,null,null,"Space leased in DES building",null,"ft2"]
[0,0,0,"Stationary Combustion","Distillate Fuel Oil No. 2",null,null,null,null,null,null,"MT","N2O",null,null,0,0,0,null,null,null,"Space leased from another agency",null,"ft2"]
[0,0,0,"Stationary Combustion","Propane",null,null,null,null,null,null,"MT","CO2",null,null,0,0,0,null,null,null,"Space leased in privately building",null,"ft2"]
[0,0,0,"Stationary Combustion","Propane",null,null,null,null,null,null,"MT","CH4",null,null,0,0,0,null,null,null,"Total space",null,"ft2"]
[0,0,0,"Stationary Combustion","Propane",null,null,null,null,null,null,"MT","N2O"]
[0,0,0,"Stationary Combustion","Distillate Fuel Oil No. 2","Fuel Oil",null,null,null,null,null,"MT","CO2"]
[0,0,0,"Stationary Combustion","Distillate Fuel Oil No. 2","Fuel Oil",null,null,null,null,null,"MT","CH4"]
[0,0,0,"Stationary Combustion","Distillate Fuel Oil No. 2","Fuel Oil",null,null,null,null,null,"MT","N2O"]
[0,0,0,"Stationary Combustion","Motor Gasoline"," ",null,null,null,null,null,"MT","CO2"]
[0,0,0,"Stationary Combustion","Motor Gasoline"," ",null,null,null,null,null,"MT","CH4"]
[0,0,0,"Stationary Combustion","Motor Gasoline"," ",null,null,null,null,null,"MT","N2O"]
[0,0,0,"Electricity_Unspecified",null,null,null,null,null,null,null,"MT","CO2"]
[0,0,0,"Electricity_Unspecified",null,null,null,null,null,null,null,"MT","CH4"]
[0,0,0,"Electricity_Unspecified",null,null,null,null,null,null,null,"MT","N2O"]
[0,0,0,"Electricity_Renewable",null,null,null,null,null,null,null,"MT","CO2"]
[0,0,0,"Electricity_Renewable",null,null,null,null,null,null,null,"MT","CH4"]
[0,0,0,"Electricity_Renewable",null,null,null,null,null,null,null,"MT","N2O"]
[0,0,0,"Steam",null,null,null,null,null,null,null,"MT","CO2"]
[0,0,0,"Steam",null,null,null,null,null,null,null,"MT","CH4"]
[0,0,0,"Steam",null,null,null,null,null,null,null,"MT","N2O"]
[0,0,0,"Motor Vehicle","Gasoline-Other","Conventional-Summer-Premium",null,null,null,null,null,"MT","CO2"]
[0,0,0,"Motor Vehicle","Gasoline-Other","Conventional-Summer-Premium",null,null,null,null,null,"MT","CH4"]
[0,0,0,"Motor Vehicle","Gasoline-Other","Conventional-Summer-Premium",null,null,null,null,null,"MT","N2O"]
[0,0,0,"Motor Vehicle","Ethanol (100%)",null,null,null,null,null,null,"MT","Bio_CO2"]
[0,0,0,"Motor Vehicle","Ethanol (100%)",null,null,null,null,null,null,"MT","CH4"]
[0,0,0,"Motor Vehicle","Ethanol (100%)",null,null,null,null,null,null,"MT","N2O"]
[0,0,0,"Motor Vehicle","Distillate No. 2 - Ultra Low Sulfur","Retail purchases",null,null,null,null,null,"MT","CO2"]
[0,0,0,"Motor Vehicle","Distillate No. 2 - Ultra Low Sulfur","Retail purchases",null,null,null,null,null,"MT","CH4"]
[0,0,0,"Motor Vehicle","Distillate No. 2 - Ultra Low Sulfur","Retail purchases",null,null,null,null,null,"MT","N2O"]
[{"$f":"$A$2","v":0},{"$f":"$B$2","v":0},{"$f":"$C$2","v":0},"Motor Vehicle","Biodiesel (100%, methyl ester)","Retail purchases",null,null,null,null,null,"MT","Bio_CO2"]
[0,0,0,"Motor Vehicle","Biodiesel (100%, methyl ester)","Retail purchases",null,null,null,null,null,"MT","CH4"]
[0,0,0,"Motor Vehicle","Biodiesel (100%, methyl ester)","Retail purchases",null,null,null,null,null,"MT","N2O"]
[0,0,0,"Motor Vehicle","Distillate No. 2 - Ultra Low Sulfur","WSDOT fueling stations",null,null,null,null,null,"MT","CO2"]
[0,0,0,"Motor Vehicle","Distillate No. 2 - Ultra Low Sulfur","WSDOT fueling stations",null,null,null,null,null,"MT","CH4"]
[0,0,0,"Motor Vehicle","Distillate No. 2 - Ultra Low Sulfur","WSDOT fueling stations",null,null,null,null,null,"MT","N2O"]
[0,0,0,"Motor Vehicle","Biodiesel (100%, methyl ester)","WSDOT fueling stations",null,null,null,null,null,"MT","Bio_CO2"]
[0,0,0,"Motor Vehicle","Biodiesel (100%, methyl ester)","WSDOT fueling stations",null,null,null,null,null,"MT","CH4"]
[0,0,0,"Motor Vehicle","Biodiesel (100%, methyl ester)","WSDOT fueling stations",null,null,null,null,null,"MT","N2O"]
[0,0,0,"Motor Vehicle","Distillate No. 2 - Ultra Low Sulfur","Bulk purchases",null,null,null,null,null,"MT","CO2"]
[0,0,0,"Motor Vehicle","Distillate No. 2 - Ultra Low Sulfur","Bulk purchases",null,null,null,null,null,"MT","CH4"]
[0,0,0,"Motor Vehicle","Distillate No. 2 - Ultra Low Sulfur","Bulk purchases",null,null,null,null,null,"MT","N2O"]
[0,0,0,"Motor Vehicle","Biodiesel (100%, methyl ester)","Bulk purchases",null,null,null,null,null,"MT","Bio_CO2"]
[0,0,0,"Motor Vehicle","Biodiesel (100%, methyl ester)","Bulk purchases",null,null,null,null,null,"MT","CH4"]
[0,0,0,"Motor Vehicle","Biodiesel (100%, methyl ester)","Bulk purchases",null,null,null,null,null,"MT","N2O"]
[0,0,0,"Motor Vehicle","Propane",null,null,null,null,null,null,"MT","CO2"]
[0,0,0,"Motor Vehicle","Propane",null,null,null,null,null,null,"MT","CH4"]
[0,0,0,"Motor Vehicle","Propane",null,null,null,null,null,null,"MT","N2O"]
[0,0,0,"Motor Vehicle","Propane"," ",null,null,null,null,null,"MT","Bio_CO2"]
[0,0,0,"Motor Vehicle","Propane"," ",null,null,null,null,null,"MT","CH4"]
[0,0,0,"Motor Vehicle","Propane"," ",null,null,null,null,null,"MT","N2O"]
[0,0,0,"Boat","Gasoline-Other","Conventional-Summer-Premium",null,null,null,null,null,"MT","CO2"]
[0,0,0,"Boat","Gasoline-Other","Conventional-Summer-Premium",null,null,null,null,null,"MT","CH4"]
[0,0,0,"Boat","Gasoline-Other","Conventional-Summer-Premium",null,null,null,null,null,"MT","N2O"]
[0,0,0,"Boat","Ethanol (100%)",null,null,null,null,null,null,"MT","Bio_CO2"]
[0,0,0,"Boat","Ethanol (100%)",null,null,null,null,null,null,"MT","CH4"]
[0,0,0,"Boat","Ethanol (100%)",null,null,null,null,null,null,"MT","N2O"]
[0,0,0,"Boat","Distillate No. 2 - Ultra Low Sulfur",null,null,null,null,null,null,"MT","CO2"]
[0,0,0,"Boat","Distillate No. 2 - Ultra Low Sulfur",null,null,null,null,null,null,"MT","CH4"]
[0,0,0,"Boat","Distillate No. 2 - Ultra Low Sulfur",null,null,null,null,null,null,"MT","N2O"]
[0,0,0,"Boat","Biodiesel (100%, methyl ester)",null,null,null,null,null,null,"MT","Bio_CO2"]
[0,0,0,"Boat","Biodiesel (100%, methyl ester)",null,null,null,null,null,null,"MT","CH4"]
[{"$f":"$A$2","v":0},{"$f":"$B$2","v":0},{"$f":"$C$2","v":0},"Boat","Biodiesel (100%, methyl ester)",null,null,null,null,null,null,"MT","N2O"]
[0,0,0,"Ferry","Distillate No. 2 - Ultra Low Sulfur",null,null,null,null,null,null,"MT","CO2"]
[0,0,0,"Ferry","Distillate No. 2 - Ultra Low Sulfur",null,null,null,null,null,null,"MT","CH4"]
[0,0,0,"Ferry","Distillate No. 2 - Ultra Low Sulfur",null,null,null,null,null,null,"MT","N2O"]
[0,0,0,"Ferry","Biodiesel (100%, methyl ester)",null,null,null,null,null,null,"MT","Bio_CO2"]
[0,0,0,"Ferry","Biodiesel (100%, methyl ester)",null,null,null,null,null,null,"MT","CH4"]
[0,0,0,"Ferry","Biodiesel (100%, methyl ester)",null,null,null,null,null,null,"MT","N2O"]
[0,0,0,"Aircraft","Aviation Gasoline",null,null,null,null,null,null,"MT","CO2"]
[0,0,0,"Aircraft","Aviation Gasoline",null,null,null,null,null,null,"MT","CH4"]
[0,0,0,"Aircraft","Aviation Gasoline",null,null,null,null,null,null,"MT","N2O"]
[0,0,0,"Aircraft","Ethanol (100%)",null,null,null,null,null,null,"MT","Bio_CO2"]
[0,0,0,"Aircraft","Ethanol (100%)",null,null,null,null,null,null,"MT","CH4"]
[0,0,0,"Aircraft","Ethanol (100%)",null,null,null,null,null,null,"MT","N2O"]
[0,0,0,"Aircraft","Kerosene-Type Jet Fuel",null,null,null,null,null,null,"MT","CO2"]
[0,0,0,"Aircraft","Kerosene-Type Jet Fuel",null,null,null,null,null,null,"MT","CH4"]
[0,0,0,"Aircraft","Kerosene-Type Jet Fuel",null,null,null,null,null,null,"MT","N2O"]
[0,0,0,"Aircraft","Kerosene-Type Jet Fuel"," ",null,null,null,null,null,"MT","Bio_CO2"]
[0,0,0,"Aircraft","Kerosene-Type Jet Fuel"," ",null,null,null,null,null,"MT","CH4"]
[0,0,0,"Aircraft","Kerosene-Type Jet Fuel"," ",null,null,null,null,null,"MT","N2O"]
[0,0,0,"Stationary Combustion","Biodiesel (100%, methyl ester)",null,null,null,null,null,null,"MT","Bio_CO2"]
[0,0,0,"Stationary Combustion","Biodiesel (100%, methyl ester)",null,null,null,null,null,null,"MT","CH4"]
[0,0,0,"Stationary Combustion","Biodiesel (100%, methyl ester)",null,null,null,null,null,null,"MT","N2O"]
[0,0,0,"Stationary Combustion","Ethanol (100%)",null,null,null,null,null,null,"MT","Bio_CO2"]
[0,0,0,"Stationary Combustion","Ethanol (100%)",null,null,null,null,null,null,"MT","CH4"]
[0,0,0,"Stationary Combustion","Ethanol (100%)",null,null,null,null,null,null,"MT","N2O"]
[0,0,0,"Stationary Combustion","Kerosene-Type Jet Fuel",null,null,null,null,null,null,"MT","CO2"]
[0,0,0,"Stationary Combustion","Kerosene-Type Jet Fuel",null,null,null,null,null,null,"MT","CH4"]
[0,0,0,"Stationary Combustion","Kerosene-Type Jet Fuel",null,null,null,null,null,null,"MT","N2O"]
[0,0,0,"Stationary Combustion","Aviation Gasoline",null,null,null,null,null,null,"MT","CO2"]
[0,0,0,"Stationary Combustion","Aviation Gasoline",null,null,null,null,null,null,"MT","CH4"]
[0,0,0,"Stationary Combustion","Aviation Gasoline",null,null,null,null,null,null,"MT","N2O"]
[0,0,0,"Motor Vehicle","Natural Gas (Weighted U.S. Average)",null,null,null,null,null,null,"MT","CO2"]
[0,0,0,"Motor Vehicle","Natural Gas (Weighted U.S. Average)",null,null,null,null,null,null,"MT","CH4"]
[0,0,0,"Motor Vehicle","Natural Gas (Weighted U.S. Average)",null,null,null,null,null,null,"MT","N2O"]
[0,0,0,"Motor Vehicle","Natural Gas (Weighted U.S. Average)",null,null,null,null,null,null,"MT","CO2"]
[0,0,0,"Motor Vehicle","Natural Gas (Weighted U.S. Average)",null,null,null,null,null,null,"MT","CH4"]
[0,0,0,"Motor Vehicle","Natural Gas (Weighted U.S. Average)",null,null,null,null,null,null,"MT","N2O"]
[0,0,0,"Stationary Combustion","Wood products",null,null,null,null,null,null,"MT","Bio_CO2"]
[0,0,0,"Stationary Combustion","Wood products",null,null,null,null,null,null,"MT","CH4"]
[0,0,0,"Stationary Combustion","Wood products",null,null,null,null,null,null,"MT","N2O"]
[0,0,0,"Motor Vehicle","Gasoline-Other",null,null,null,null,null,null,"MT","HFC"]
[0,0,0,"Motor Vehicle","Distillate No. 2 - Ultra Low Sulfur","Retail purchases",null,null,null,null,null,"MT","HFC"]
[0,0,0,"Motor Vehicle","Distillate No. 2 - Ultra Low Sulfur","WSDOT fueling stations",null,null,null,null,null,"MT","HFC"]
[0,0,0,"Motor Vehicle","Distillate No. 2 - Ultra Low Sulfur","Bulk purchases",null,null,null,null,null,"MT","HFC"]
[0,0,0,"Motor Vehicle","Propane",null,null,null,null,null,null,"MT","HFC"]
[0,0,0,"Boat","Gasoline-Other",null,null,null,null,null,null,"MT","HFC"]
[0,0,0,"Boat","Distillate No. 2 - Ultra Low Sulfur",null,null,null,null,null,null,"MT","HFC"]
[0,0,0,"Ferry","Distillate No. 2 - Ultra Low Sulfur",null,null,null,null,null,null,"MT","HFC"]
[0,0,0,"Aircraft","Aviation Gasoline",null,null,null,null,null,null,"MT","HFC"]
[0,0,0,"Aircraft","Kerosene-Type Jet Fuel",null,null,null,null,null,null,"MT","HFC"]
[0,0,0,"Motor Vehicle","Natural Gas (Weighted U.S. Average)",null,null,null,null,null,null,"MT","HFC"]
[0,0,0,"Motor Vehicle","Natural Gas (Weighted U.S. Average)",null,null,null,null,null,null,"MT","HFC"]
[0,0,0,"Motor Vehicle","Butanol",null,null,null,null,null,null,"MT","CO2"]
[0,0,0,"Motor Vehicle","Butanol",null,null,null,null,null,null,"MT","CH4"]
[0,0,0,"Motor Vehicle","Butanol",null,null,null,null,null,null,"MT","N2O"]
[0,0,0,"Motor Vehicle","Butanol",null,null,null,null,null,null,"MT","Bio_CO2"]
[0,0,0,"Motor Vehicle","Butanol",null,null,null,null,null,null,"MT","CH4"]
[0,0,0,"Motor Vehicle","Butanol",null,null,null,null,null,null,"MT","N2O"]
[0,0,0,"Motor Vehicle","Butanol",null,null,null,null,null,null,"MT","HFC"]